Cogmind - Beta 14 @@@ ROGUE MODE // 2024.08.07 @ 16:07:45 Player: Phosphorus Result: Destroyed by Y-54 Guardian with Gatling Laser Performance ------------- Evolutions (0) 0 Regions Visited (3) 600 Robots Destroyed (41) 205 Value Destroyed (835) 835 Prototype IDs (1) 20 Alien Tech Used (0) 0 Bonus (0) 0 TOTAL SCORE: 1660 Bonus ------- None Cogmind --------- Core Integrity 0/250 Matter 290/300 Energy 250/250 System Corruption 0% Temperature Cool (12) Movement Treading (240) Ox1 Location -7/Recycling Parts ------- > --- POWER (1) -------- Ion Engine > --- PROPULSION (2) --- Light Treads Light Treads > --- UTILITY (2) ------ Large Storage Unit Medium Armor Plating > --- WEAPON (2) ------- Improved Medium Laser Heavy Particle Cannon > --- INVENTORY (15) --- Deuterium Engine Transmission Jammer Medium Armor Plating Reactive Plating Improved Medium Laser Subdweller Laser Subdweller Machine Gun Proton Missile Launcher Grenade Launcher Rocket Launcher Rocket Launcher Plasma Cutter Multitool Power Maul Scythe Peak State ------------ > --- POWER ------------ Ion Engine > --- PROPULSION ------- Light Treads Light Treads > --- UTILITY ---------- Large Storage Unit Medium Armor Plating > --- WEAPON ----------- Improved Medium Laser Improved Medium Laser > --- INVENTORY -------- Deuterium Engine Transmission Jammer Medium Armor Plating Reactive Plating Subdweller Laser Subdweller Machine Gun Proton Missile Launcher Grenade Launcher Rocket Launcher Rocket Launcher Plasma Cutter Multitool Powered Hammer Power Maul Scythe [Rating: 16] Favorites ----------- Power Ion Engine Engine Ion Engine Propulsion Light Treads Treads Light Treads Utility Large Storage Unit Device Seismic Detector Storage Large Storage Unit Hackware Hacking Suite Protection Medium Armor Plating Weapon Improved Medium Laser Energy Gun Improved Medium Laser Energy Cannon Subdweller Beam Cannon Ballistic Gun Subdweller Machine Gun Launcher Grenade Launcher Special Weapon Mining Laser Build | -11 -10 -10 -7 ------- Run | Yrd Mat Sub Rec Slots Evolved . | . . . . Power . | . . . . Propulsion . | . . . . Utility . | . . . . Weapon . | . . . . Parts Attached 61 | 7 15 27 12 Power 5 | 1 . 4 . Engine 5 | 1 . 4 . Core . | . . . . Reactor . | . . . . Propulsion 6 | 2 1 2 1 Treads 6 | 2 1 2 1 Leg . | . . . . Wheel . | . . . . Hover . | . . . . Flight . | . . . . Utility 21 | 2 6 11 2 Device 6 | 1 2 3 . Storage 4 | 1 1 1 1 Processor . | . . . . Hackware 1 | . 1 . . Protection 10 | . 2 7 1 Artifact . | . . . . Weapon 29 | 2 8 10 9 Energy Gun 13 | . 4 3 6 Energy Cannon 4 | . 1 2 1 Ballistic Gun 7 | 2 1 3 1 Ballistic Cannon . | . . . . Launcher 4 | . 1 2 1 Special Weapon 1 | . 1 . . Impact Weapon . | . . . . Slashing Weapon . | . . . . Piercing Weapon . | . . . . Special Melee Weapon . | . . . . Unidentified Prototypes 1 | . 1 . . Parts Lost 3 | . . 2 1 Power . | . . . . Propulsion 2 | . . 1 1 Utility . | . . . . Weapon 1 | . . 1 . Highest Loss Streak 1 | . . 1 1 To Critical Strikes . | . . . . Average Slot Usage (%) 96 | . 100 93 98 Engine 14 | . 14 14 14 Treads 27 | . 28 27 26 Device 6 | . 12 6 . Storage 10 | . 14 8 13 Protection 7 | . 1 7 14 Energy Gun 10 | . 16 4 22 Energy Cannon 7 | . 5 10 . Ballistic Gun 7 | . 5 10 2 Launcher 1 | . . 2 2 Peak Build Rating 16 | 7 13 14 16 Average Rating 11 | 5 9 12 13 On Entrance 7 | . 7 13 11 Naked Turns . | . . . . Heaviest Build 44 | 13 32 44 41 Greatest Support 40 | 40 40 40 40 Greatest Overweight (x) 1 | . . 1 1 Average Overweight (x) . | . . . . Largest Inventory Capacity 15 | 8 15 15 15 Average Capacity 11 | 7 8 11 14 Most Carried 15 | 8 12 15 15 Average Carried 10 | 4 8 10 12 Final Capacity 15 | 8 15 15 15 Final Carried 15 | 7 12 13 15 Class Distribution -------------------- 71% | Mutant 22% | Subdweller-Mutant 5% | Scavenger-Mutant Dominant Class ---------------- Mutant | -10/Materials Mutant | -10/Subcaves Mutant | -7/Recycling Resources | -11 -10 -10 -7 ----------- Run | Yrd Mat Sub Rec Matter Collected 998 | 257 139 430 172 Remotely . | . . . . Salvage Created 1817 | 53 212 482 1070 Parts 95 | 10 20 37 28 Haulers Intercepted . | . . . . Recyclers Shooed 8 | 1 1 . 6 Parts Field Recycled . | . . . . Retrieved Matter . | . . . . Parts Self-Destructed 11 | . . 11 . Prevented . | . . . . Kills | -11 -10 -10 -7 ------- Run | Yrd Mat Sub Rec Combat Hostiles Destroyed 26 | . 8 17 1 Guns 7 | . 3 3 1 Cannons 12 | . 5 7 . AOE 6 | . . 6 . Classes Destroyed 7 | 1 3 1 2 Tunneler 2 | 2 . . . Recycler 12 | . . . 12 Operator 1 | . 1 . . Swarmer 11 | . 4 7 . Grunt 4 | . 4 . . Sentry 1 | . . . 1 Subdweller 10 | . . 10 . Best Kill Streak 6 | 1 6 4 3 Combat Bots Only 6 | . 6 4 1 Max Kills in Single Turn 2 | 1 1 2 1 Gunslinging . | . . . . Exploded 2 | . . 2 . Melee . | . . . . Uniques/NPCs Destroyed . | . . . . Combat | -11 -10 -10 -7 -------- Run | Yrd Mat Sub Rec Hostile Shots Fired 144 | . 41 82 21 Missed 36 | . 8 21 7 Damage Taken 1457 | . 367 961 129 Core 259 | . 73 170 16 Absorbed by Shields . | . . . . Core Remaining (%) 100 | 100 . . . Volleys Fired 130 | 18 21 54 37 Largest 2 | 2 2 2 2 Hottest 160 | 40 116 160 116 Shots Fired 195 | 36 39 60 60 Gun 124 | 36 19 12 57 Cannon 54 | . 17 37 . Launcher 16 | . 2 11 3 Special 1 | . 1 . . Kinetic 45 | 36 8 1 . Thermal 134 | . 29 48 57 Explosive 16 | . 2 11 3 Electromagnetic . | . . . . Robot Hit Streak 20 | 12 5 20 17 Robot Miss Streak 4 | 2 3 2 4 Penetration Max . | . . . . Secondary Targets . | . . . . Shots Hit Robots 113 | 27 21 33 32 Core Hits 52 | 5 14 18 15 Critical Kills 1 | . . 1 . Critical Parts Destroyed . | . . . . Critical Strikes 6 | . . 1 5 Burn 5 | . . . 5 Meltdown 1 | . . 1 . Melee Attacks . | . . . . Impact . | . . . . Slashing . | . . . . Piercing . | . . . . Sneak Attacks . | . . . . Combat Hostiles . | . . . . Follow-up Attacks . | . . . . Damage Inflicted 2309 | 219 320 1186 584 Guns 1060 | 219 136 130 575 Cannons 835 | . 178 657 . Explosions 399 | . . 399 . Melee . | . . . . Ramming 15 | . 6 . 9 Kinetic 277 | 219 32 26 . Thermal 1618 | . 282 761 575 Explosive 399 | . . 399 . Electromagnetic . | . . . . Impact . | . . . . Slashing . | . . . . Piercing . | . . . . Highest Corruption . | . . . . Average Corruption . | . . . . Corruption Purged . | . . . . Corruption Blocked . | . . . . Overload Shots . | . . . . Overflow Damage 20 | . . 20 . Projectiles . | . . . . Explosions 20 | . . 20 . Melee . | . . . . Knockbacks . | . . . . Impact . | . . . . Kinetic . | . . . . Secondary . | . . . . Self-Inflicted Damage 94 | . 28 50 16 Shots 6 | . 2 3 1 Rammed 4 | . 2 . 2 Targets Rammed 5 | . 2 . 3 Kicked . | . . . . Crushed 1 | . . . 1 Highest Temperature 300 | . 273 63 300 Average Temperature 68 | . 70 20 77 Received Heat Transfer 360 | . 102 222 36 Effects 1 | . 1 . . Interference 1 | . 1 . . Siege Activations . | . . . . Robots Corrupted . | . . . . Combat Hostiles . | . . . . Parts Fried . | . . . . Impact Corruptions . | . . . . Robots Melted 1 | . . 1 . Combat Hostiles 1 | . . 1 . Parts Melted 3 | . . 3 . Heat Transferred 3282 | . 629 1098 1555 Parts Sabotaged . | . . . . Parts Stolen . | . . . . Parts Stripped . | . . . . Power Chain Reactions . | . . . . Alert | -11 -10 -10 -7 ------- Run | Yrd Mat Sub Rec Peak Influence 265 | 10 265 . 205 Initial 97 | . 6 . 97 Average 91 | 2 124 . 71 Maximum Alert Level 1 | . 1 . 1 Low Security (%) 82 | 100 77 . 84 Level 1 17 | . 22 . 15 Level 2 . | . . . . Level 3 . | . . . . Level 4 . | . . . . Level 5 . | . . . . High Security . | . . . . Max Security . | . . . . Squads Dispatched 1 | . 1 . . Investigation 1 | . 1 . . Extermination . | . . . . Reinforcement . | . . . . Assault . | . . . . Garrison . | . . . . Intercept . | . . . . Searches Triggered . | . . . . Construction Impeded . | . . . . Haulers Reinforced . | . . . . Active Scanning Responses . | . . . . Cargo Convoy Interrupts . | . . . . Stealth | -11 -10 -10 -7 --------- Run | Yrd Mat Sub Rec Distress Signals 3 | . 3 . . Communications Jammed . | . . . . Distress Signals . | . . . . Times Spotted 44 | . 20 22 2 Peak Tracking Total 9 | . 9 6 1 Tactical Retreats 7 | . 4 3 . Traps | -11 -10 -10 -7 ------- Run | Yrd Mat Sub Rec Traps Triggered 1 | . 1 . . Indirectly . | . . . . Trap Hack Attempts . | . . . . Triggered . | . . . . Disarmed . | . . . . Reprogrammed . | . . . . Reused 1 | . . 1 . Traps Extracted . | . . . . Installed 1 | . . 1 . Triggered . | . . . . Most Traps Carried 1 | . . 1 . Machines | -11 -10 -10 -7 ---------- Run | Yrd Mat Sub Rec Machines Disabled 3 | . . 1 2 Max in Single Turn 1 | . . 1 1 Machines Repaired . | . . . . Machines Dismantled . | . . . . Machines Sabotaged . | . . . . Overloaded Fab Kills . | . . . . Hacking | -11 -10 -10 -7 --------- Run | Yrd Mat Sub Rec Machines Accessed 10 | . 3 . 7 Terminals 6 | . 3 . 3 Fabricators . | . . . . Repair Stations . | . . . . Recycling Units 4 | . . . 4 Scanalyzers . | . . . . Garrison Access . | . . . . Total Hacks 20 | . 8 . 12 Successful 11 | . 3 . 8 Failed 8 | . 4 . 4 Catastrophic 2 | . 1 . 1 Database Lockouts 1 | . 1 . . Manual 17 | . 8 . 9 Terminals 16 | . 8 . 8 Fabricators . | . . . . Repair Stations . | . . . . Recycling Units 4 | . . . 4 Scanalyzers . | . . . . Garrison Access . | . . . . Terminal Hacks 6 | . 3 . 3 Part Schematic 2 | . 1 . 1 Robot Analysis 1 | . 1 . . Locate Traps 1 | . 1 . . Hauler Manifests 1 | . . . 1 Zone Layout 1 | . . . 1 Fabricator Hacks . | . . . . Repair Station Hacks . | . . . . Recycling Unit Hacks . | . . . . Scanalyzer . | . . . . Garrison Access Hacks . | . . . . Unauthorized Hacks 5 | . . . 5 Terminals 1 | . . . 1 Track 1 | . . . 1 Fabricators . | . . . . Repair Stations . | . . . . Recycling Units 4 | . . . 4 Tunnel 4 | . . . 4 Scanalyzers . | . . . . Garrison Access . | . . . . Data Cores Recovered 1 | . 1 . . Used 1 | . 1 . . Hacking Detections 6 | . 3 . 3 Full Trace Events 1 | . . . 1 Feedback Events . | . . . . Feedback Blocked . | . . . . Robot Schematics Acquired . | . . . . Robots Built . | . . . . Authchips . | . . . . Time . | . . . . Total Robot Build Rating . | . . . . Part Schematics Acquired 2 | . 1 . 1 Parts Built . | . . . . Authchips . | . . . . Time . | . . . . Total Part Build Rating . | . . . . Parts Repaired . | . . . . Time . | . . . . Parts Recycled . | . . . . Recycled Matter . | . . . . Retrieved Matter . | . . . . Retrieved Components . | . . . . Parts Scanalyzed . | . . . . Part Schematics Acquired . | . . . . Parts Damaged . | . . . . Bothacking | -11 -10 -10 -7 ------------ Run | Yrd Mat Sub Rec Used RIF Installer . | . . . . Robots Hacked . | . . . . Non-combat . | . . . . Combat . | . . . . Robot Hacks Applied . | . . . . Relay Couplers Released . | . . . . Fabnet Peak Effective % . | . . . . Robots Rewired . | . . . . Allies Hacked . | . . . . Hacks Repelled . | . . . . Allies | -11 -10 -10 -7 -------- Run | Yrd Mat Sub Rec Total Allies . | . . . . Largest Group . | . . . . Highest-Rated Group . | . . . . Highest-Rated Ally . | . . . . Total Orders . | . . . . Ally Attacks . | . . . . Total Damage . | . . . . Kills . | . . . . Allies Corrupted . | . . . . Allies Melted . | . . . . Intel | -11 -10 -10 -7 ------- Run | Yrd Mat Sub Rec Robot Analysis Total 1 | . 1 . . Derelict Logs Recovered 1 | . . 1 . Drone Launches . | . . . . Drone Recoveries . | . . . . Exploration | -11 -10 -10 -7 ------------- Run | Yrd Mat Sub Rec Turns Passed 6121 | 163 1179 3468 1311 Spaces Moved 2793 | 66 476 1700 551 Core 6 | 6 . . . Treads 2787 | 60 476 1700 551 Legs . | . . . . Wheels . | . . . . Hover . | . . . . Flight . | . . . . Fastest Speed 50 | 50 160 160 160 Average Speed 165 | 150 160 167 168 Slowest Speed 240 | 160 160 240 240 Overloaded Moves . | . . . . Propulsion Burnouts . | . . . . Robots Hopped . | . . . . Cave-ins Triggered . | . . . . Exploration Rate (%) 54 | 5 68 65 80 Regions Visited 3 Branch Regions 2 Pre-discovered Areas 4 | . . . 4 Known Exits Taken . | . . . . Unknown Exits Taken 3 | 1 1 1 . Scrap Searched 5 | . . 5 . Spaces Dug 40 | . 9 21 10 Terrain Destroyed 105 | . 15 73 17 Melee . | . . . . Projectile 2 | . 1 1 . AOE 103 | . 14 72 17 Terrain Rammed . | . . . . Walls Destroyed . | . . . . Machines Disabled . | . . . . Actions | -11 -10 -10 -7 --------- Run | Yrd Mat Sub Rec Total 4096 | 98 860 2269 869 Wait 981 | . 308 434 239 Move 2790 | 65 475 1699 551 Hop . | . . . . Pick Up 62 | 8 19 17 18 Fast Attach 22 | 6 4 9 3 Attach 6 | 1 1 2 2 Detach 7 | . 1 5 1 Swap 33 | . 10 16 7 Drop 53 | . 19 26 8 Fire 130 | 18 21 54 37 Melee . | . . . . Ram . | . . . . Kick . | . . . . Crush 5 | . 2 . 3 Escape Stasis . | . . . . Rewire . | . . . . Trap 1 | . . 1 . Miscellaneous 6 | . . 6 . Route ------- -11/Scrapyard -10/Materials (discovered 3 exits: [*Mat] / [*Min] / [*Sub]) -10/Subcaves -7/Recycling History --------- Turn | Location | Event 8 | -11/Scrapyard | Discovered new exit (range 14) 164 | -11/Scrapyard | Entered Materials 318 | -10/Materials | Build established: Mutant 460 | -10/Materials | Discovered new exit (range 3) 496 | -10/Materials | Central database locked down 777 | -10/Materials | Discovered new exit (range 16) 1327 | -10/Materials | Discovered new exit (range 9) 1343 | -10/Materials | Entered Subcaves 1732 | -10/Subcaves | Learned 4 Materials zone layouts 1852 | -10/Subcaves | Shifting Twisted Machinery released Battle Rifle 1915 | -10/Subcaves | Shifting Twisted Machinery released Battle Rifle 1968 | -10/Subcaves | Core integrity fell below 50% 2491 | -10/Subcaves | Shifting Twisted Machinery released Flamer 2625 | -10/Subcaves | Shifting Twisted Machinery released Hvy. Riot Gun 2811 | -10/Subcaves | A swath of the cavern ceiling suddenly collapsed 3003 | -10/Subcaves | Build established: Scavenger-Mutant 3109 | -10/Subcaves | Core integrity fell below 20% 3444 | -10/Subcaves | Build established: Subdweller-Mutant 4716 | -10/Subcaves | Discovered new exit (range 10) 4811 | -10/Subcaves | Entered Recycling 4812 | -7/Recycling | Met a Zionite searching for Scraptown 4821 | -7/Recycling | Build established: Mutant 6122 | -7/Recycling | Destroyed by Y-54 Guardian with Gatling Laser Last Messages --------------- 05915_ U-05 Engineer builds a Wall. 05916_ U-05 Engineer lays Concrete. 05941_ Connecting with Terminal... >>Layout(Zone) Retrieving Zone 1T layout... Downloaded map data. 05941_ Connecting with Terminal... 05950_ Transfer Shaft disabled. 05998_ Acquired 60 matter. 06001_ Acquired Proton Missile Launcher. 06010_ Acquired Powered Hammer. 06013_ Acquired Power Maul. 06024_ Connecting with Recycling Unit... >>Force(Tunnel) DISCOVERED[-7/Storage] 06060_ Acquired Plasma Cutter. 06066_ Acquired Reactive Plating. 06067_ Dropped Powered Hammer. 06071_ Acquired Hvy. Particle Cannon. 06120_ Y-54 Guardian springs to life. Map ----- +----------------------------------------------------+ | ?????????????????????????????? | | ?????????????????????????????? | | ?????????????????????????????? | | ?????????????????????????????? | | ?????????????????????????????? | | ?????????????????????????????? | | ?????????????????????????????? | | ?????????????????????????????? | | ?????????????????????????????? | | ?????????????????????????????? | | ?????????????????????????????? | | ?????????????????????????????? | | ?????+?????##????????????????? | | ????? ??? ##??????????????? | | ????? ??? ???????????????? | | ????? ??? Y#??????????????## | | ????# ?? ###????????????# | | ????# #? #????????????# | | ????# #? #????????????# | | ????# ## #????????????# | | ???## #????????????# | | ???#" #????????????# | | ???#" #???????????## | | ???#" #???????????#% | | ???#T ######??????## | | ???#"@ """ # #???????# | | ???#" """ # #???????# | | ???#" """ # #???????# | | ???## # /#???????## | | ????# # ! #????????? | | ????#### # [ #????????? | | ???????# # #????????? | | ???????# # ! #????????? | | ???????# # ! #????????? | | ??######+##+## # ]!#????????? | | ??# + + ![#????????? | | ??# # # %#????????? | | ??# # # | #????????? | | ??# # ######????????? | | ??# # #"""#?????????? | | ??# # #"Y"#########+# | | ??# # | | ??# + | | ??# # | | ??# ###+#+########| | | | ??# #?# #???? | | ??# #?# #???? | | ??# #?# #???? | | ??# #?# ##??? | | ??# #?# ! #??? | +----------------------------------------------------+ Best States ------------- Heat Dissipation 25 Energy Generation 15 Energy Capacity 250 Matter Stores 300 Matter Capacity 300 Sight Range 16 Terrain Scan Density 10 Armor Coverage 800 Evasion (%) 40 Recoil Reduction 2 Offensive Hacking 10 Item Schematics ----------------- Huge Storage Unit | -10/Materials | Hacked Hpw. Tractor Beam | -7/Recycling | Hacked Robot Schematics ------------------ None Fabricated ------------ Nothing Alien Tech Used ----------------- None Achievements -------------- None Challenges ------------ None Game ------ Seed BiocellBeamBarrier Manual? 0 Play Time 00:32:27 Cumulative 150.0 hours Start 2024.08.07 @ 12:53:50 End 2024.08.07 @ 16:07:45 Sessions 5 Manual Loads 0 Difficulty Rogue Special Mode None Game No. 83 Rogue 83 Adventurer 0 Explorer 0 Win Type - Total 5 Types 2/0/1/1/0/0/0/1/0 Lore% 54 Gallery% 70 Achievement% 64 Wizard Run 0 Options --------- Layout 0 ASCII 0 Keyboard 1 Movement Numpad Keybinds 0 Fullscreen 1 Font 18/SmallcapsGlow Map View 76x50 Zoom Use 0% Tactical HUD 1 Map Filters NONE Filters NONE Steam 1 RUN: a5ae34ba-7551-4975-9161-2143d5b342fe